bitfinex-derivatives/quotes_BTCF0:USTF0_20260118
["timestamp","ask_amount","ask_price","bid_price","bid_amount"]
[1768699931138,0.00231218,95149.0,95135.0,0.02836533]
[1768699931435,0.010513,95148.0,95135.0,0.02836533]
[1768699931635,0.010513,95148.0,95133.0,0.03471138]
[1768699931827,0.010513,95148.0,95133.0,0.02836533]
[1768699932436,0.010513,95148.0,95134.0,0.02836533]
[1768699933237,0.010513,95148.0,95131.0,0.11866386]
[1768699933436,0.00231218,95149.0,95131.0,0.11866386]
[1768699933738,0.0114518,95149.0,95131.0,0.11866386]
[1768699935123,0.010513,95148.0,95131.0,0.11866386]
[1768699938240,0.010513,95148.0,95131.0,0.12483712]
[1768699938737,0.010513,95148.0,95132.0,0.00617326]
[1768699944345,0.010513,95148.0,95132.0,0.03453859]
[1768699944640,0.010513,95148.0,95132.0,0.00617326]
[1768699945234,0.010513,95148.0,95132.0,0.03453859]
[1768699945850,0.010513,95146.0,95132.0,0.02836533]
[1768699946432,0.01282518,95149.0,95133.0,0.00621181]
[1768699946829,0.00231218,95149.0,95133.0,0.00621181]
[1768699949242,0.00231218,95149.0,95133.0,0.03457714]
[1768699950441,0.010513,95148.0,95133.0,0.03457714]
[1768699951645,0.00231218,95149.0,95133.0,0.03457714]
[1768699952442,0.00231218,95149.0,95134.0,0.02836533]
[1768699953241,0.00231218,95149.0,95135.0,0.02836533]
[1768699953736,0.010513,95148.0,95135.0,0.02836533]
[1768699954041,0.00231218,95149.0,95135.0,0.02836533]
[1768699954230,0.00231218,95149.0,95136.0,0.02836533]
[1768699954631,0.00231218,95149.0,95135.0,0.02836533]
[1768699955139,0.00231218,95149.0,95139.0,0.11044387]
[1768699959442,0.01384452,95155.0,95139.0,0.11044387]
[1768699959740,0.09468,95154.0,95139.0,0.11663865]
[1768699959946,0.09468,95154.0,95139.0,0.00619478]
[1768699960145,0.09468,95154.0,95140.0,0.11044387]
[1768699961048,0.09468,95154.0,95141.0,0.00619708]
[1768699962545,0.00970567,95162.0,95141.0,0.00619708]
[1768699962546,0.010512,95159.0,95141.0,0.00619708]
[1768699962744,0.09468,95158.0,95149.0,0.11044387]
[1768699963137,0.09468,95160.0,95149.0,0.11044387]
[1768699963342,0.010512,95162.0,95149.0,0.11044387]
[1768699963539,0.09468,95163.0,95153.0,0.0065359]
[1768699963945,0.010512,95162.0,95152.0,0.11044387]
[1768699964143,0.010512,95160.0,95146.0,0.0064602]
[1768699964437,0.010512,95160.0,95121.0,0.05676695]
[1768699964438,0.09468,95163.0,95142.0,0.0064602]
[1768699964633,0.00970567,95151.0,95132.0,0.09601079]
[1768699965148,0.11044387,95150.0,95132.0,0.09601079]
[1768699965446,0.00970567,95151.0,95132.0,0.09601079]
[1768699965840,0.00970567,95151.0,95132.0,0.10237005]
[1768699966238,0.00970567,95151.0,95130.0,0.2334892]
[1768699966239,0.010513,95150.0,95130.0,0.12940459]
[1768699966437,0.010513,95150.0,95125.0,0.10652679]
[1768699966438,0.10288205,95149.0,95126.0,0.10103926]
[1768699966641,0.00970567,95141.0,95124.0,0.0306781]
[1768699966842,0.00970567,95139.0,95124.0,0.00231277]
[1768699967048,0.010515,95131.0,95124.0,0.00231277]
[1768699967354,0.00970567,95129.0,95111.0,0.02836533]
[1768699967647,0.02022067,95128.0,95110.0,0.11044387]
[1768699968751,0.02022067,95128.0,95109.0,0.09699315]
[1768699968752,0.010516,95125.0,95109.0,0.09699315]
[1768699968944,0.00970567,95126.0,95109.0,0.09699315]
[1768699969143,0.00970567,95126.0,95110.0,0.11044387]
[1768699969443,0.00970567,95126.0,95109.0,0.09699315]
[1768699969644,0.09317638,95127.0,95109.0,0.09699315]
[1768699971453,0.09086372,95127.0,95109.0,0.09699315]
[1768699973254,0.09086372,95127.0,95113.0,0.02836533]
[1768699975258,0.09086372,95127.0,95109.0,0.09699315]
[1768699975259,0.1107366,95127.0,95112.0,0.02836533]
[1768699976860,0.1107366,95127.0,95113.0,0.02836533]
[1768699977248,0.1107366,95127.0,95114.0,0.02836533]
[1768699977952,0.1107366,95127.0,95110.0,0.03790296]
[1768699977953,0.1107366,95127.0,95113.0,0.02836533]
[1768699978158,0.1002206,95127.0,95113.0,0.02836533]
[1768699980659,0.010516,95126.0,95113.0,0.02836533]
[1768699981559,0.010516,95126.0,95112.0,0.02836533]
[1768699982359,0.00935688,95122.0,95112.0,0.02836533]
[1768699982665,0.00935688,95119.0,95109.0,0.00231315]
[1768699983155,0.09273125,95120.0,95109.0,0.00231315]
[1768699983855,0.01987288,95123.0,95109.0,0.00231315]
[1768699985762,0.00935688,95122.0,95109.0,0.00231315]
[1768699986565,0.09273125,95123.0,95109.0,0.00231315]
[1768699988263,0.010516,95124.0,95109.0,0.00231315]
[1768699989064,0.010516,95125.0,95109.0,0.00231315]
[1768699990565,0.010516,95123.0,95109.0,0.00231315]
[1768699990765,0.00935688,95123.0,95109.0,0.00231315]
[1768699992557,0.010516,95119.0,95109.0,0.00231315]
[1768699993356,0.010516,95122.0,95109.0,0.04021611]
[1768699994266,0.010516,95122.0,95110.0,0.03790296]
[1768699994468,0.010516,95122.0,95109.0,0.04021611]
[1768699995369,0.010516,95122.0,95110.0,0.03790296]
[1768699996270,0.010516,95122.0,95113.0,0.03790296]
[1768699997662,0.00935688,95123.0,95114.0,0.03790296]
[1768699997663,0.010516,95120.0,95114.0,0.03790296]
[1768699997862,0.09273125,95124.0,95109.0,0.0590801]
[1768699997863,0.00935688,95118.0,95109.0,0.0590801]
[1768699998068,0.00935688,95118.0,95108.0,0.02444164]
[1768699998269,0.01987288,95121.0,95104.0,0.00231326]
[1768700002869,0.010516,95119.0,95104.0,0.00231326]
[1768700003973,0.010517,95117.0,95104.0,0.00231326]
[1768700004175,0.00901812,95118.0,95104.0,0.00231326]
[1768700004374,0.01953412,95118.0,95104.0,0.00231326]
[1768700005373,0.010517,95116.0,95104.0,0.00231326]
[1768700006675,0.01953512,95116.0,95104.0,0.00231326]
[1768700006883,0.010517,95116.0,95104.0,0.00231326]
[1768700011684,0.010517,95114.0,95104.0,0.00231326]
[1768700012578,0.010517,95112.0,95104.0,0.00231326]
[1768700012786,0.010517,95112.0,95096.0,0.19348728]
[1768700012988,0.010517,95112.0,95097.0,0.00718603]
[1768700013477,0.010517,95115.0,95097.0,0.00718603]
[1768700014781,0.09429451,95112.0,95096.0,0.09472]
[1768700014989,0.010518,95101.0,95092.0,0.07571979]
[1768700015177,0.09317602,95103.0,95084.0,0.00231374]
[1768700015784,0.010519,95091.0,95071.0,0.09406556]
[1768700015973,0.010518,95107.0,95072.0,0.09472]
[1768700015974,0.09472,95098.0,95072.0,0.09472]
[1768700016178,0.09472,95097.0,95072.0,0.09472]
[1768700016378,0.09472,95097.0,95069.0,0.00231412]
[1768700017090,0.1042225,95096.0,95069.0,0.00231412]
[1768700017289,0.00992799,95080.0,95069.0,0.00231412]
[1768700018378,0.00992799,95080.0,95064.0,0.00231423]
[1768700018583,0.00992799,95073.0,95064.0,0.00231423]
[1768700018783,0.00992799,95073.0,95054.0,0.09472]
[1768700020589,0.010522,95072.0,95054.0,0.09472]
[1768700021287,0.00992799,95073.0,95054.0,0.09472]
[1768700021492,0.00992799,95073.0,95054.0,0.08766]
[1768700022086,0.02044899,95073.0,95054.0,0.08766]
[1768700022683,0.02044899,95073.0,95054.0,0.09760159]
[1768700023597,0.010522,95067.0,95054.0,0.09472]
[1768700024089,0.00992799,95070.0,95054.0,0.09472]
[1768700024295,0.00992799,95069.0,95054.0,0.09472]
[1768700025099,0.09429451,95070.0,95054.0,0.09472]
[1768700026795,0.00992799,95069.0,95054.0,0.09472]
[1768700027003,0.00992799,95067.0,95054.0,0.09472]
[1768700027199,0.010522,95066.0,95054.0,0.09472]
[1768700027400,0.010523,95063.0,95054.0,0.09472]
[1768700027602,0.02044999,95067.0,95054.0,0.09472]
[1768700028502,0.00992799,95067.0,95049.0,0.00231461]
[1768700029298,0.00992799,95067.0,95050.0,0.11061917]
[1768700030306,0.09429451,95068.0,95050.0,0.11061917]
[1768700030808,0.09429451,95068.0,95051.0,0.01063231]
[1768700033913,0.010522,95067.0,95051.0,0.00010831]
[1768700034413,0.010522,95067.0,95051.0,0.00510831]
[1768700035212,0.10421495,95068.0,95052.0,0.010524]
[1768700038014,0.00992044,95066.0,95052.0,0.010524]
[1768700038516,0.00992044,95066.0,95051.0,0.00510831]
[1768700038816,0.00992044,95064.0,95051.0,0.00510831]
[1768700040315,0.09716599,95065.0,95052.0,0.010524]
[1768700040519,0.00992044,95070.0,95054.0,0.010523]
[1768700040717,0.02044244,95069.0,95051.0,0.01563231]
[1768700040918,0.00992044,95068.0,95053.0,0.010524]
[1768700041616,0.10464044,95074.0,95053.0,0.00936473]
[1768700041811,0.09472,95074.0,95064.0,0.11061917]
[1768700042014,0.10768599,95083.0,95064.0,0.1199839]
[1768700042312,0.09476,95084.0,95069.0,0.11061917]
[1768700042519,0.09476,95084.0,95069.0,0.12114117]
[1768700043110,0.09476,95084.0,95069.0,0.11061917]
[1768700044118,0.02044044,95086.0,95069.0,0.11061917]
[1768700044416,0.10768599,95089.0,95070.0,0.010522]
[1768700044723,0.01052,95088.0,95070.0,0.010522]
[1768700045224,0.02044044,95088.0,95069.0,0.11061917]
[1768700046324,0.02243304,95087.0,95069.0,0.11061917]
[1768700046523,0.02044044,95088.0,95069.0,0.11061917]
[1768700046724,0.02243304,95087.0,95069.0,0.11061917]
[1768700046925,0.02044044,95088.0,95069.0,0.11061917]
[1768700047119,0.02243301,95087.0,95069.0,0.11061917]
[1768700047421,0.02044044,95088.0,95069.0,0.11061917]
[1768700047723,0.02243815,95087.0,95069.0,0.11061917]
[1768700047924,0.09476,95089.0,95077.0,0.11061917]
[1768700048122,0.010519,95094.0,95077.0,0.1305049]
[1768700048418,0.010519,95094.0,95080.0,0.11061917]
[1768700048821,0.010518,95101.0,95084.0,0.11061917]
[1768700049025,0.010518,95101.0,95085.0,0.02839725]
[1768700049323,0.010518,95101.0,95084.0,0.02839725]
[1768700049625,0.02043844,95101.0,95084.0,0.02839725]
[1768700050325,0.02043844,95101.0,95083.0,0.01052]
[1768700050326,0.02043844,95101.0,95083.0,0.03891725]
[1768700050730,0.02043844,95101.0,95084.0,0.02839725]
[1768700051025,0.010518,95101.0,95084.0,0.02839725]
[1768700051224,0.010518,95101.0,95083.0,0.03891725]
[1768700052123,0.010518,95101.0,95089.0,0.00231363]
[1768700052317,0.00992044,95100.0,95090.0,0.11061917]
[1768700054732,0.00992044,95100.0,95089.0,0.00231363]
[1768700054923,0.00992044,95100.0,95090.0,0.11061917]
[1768700057023,0.00992044,95100.0,95089.0,0.00231363]
[1768700057223,0.00992044,95100.0,95090.0,0.11061917]
[1768700057633,0.09716599,95101.0,95090.0,0.11061917]
[1768700057831,0.10708643,95101.0,95089.0,0.00231363]
[1768700058021,0.10708643,95101.0,95090.0,0.11061917]
[1768700061437,0.10708643,95101.0,95089.0,0.00231363]
[1768700062538,0.10708643,95101.0,95090.0,0.11061917]
[1768700068244,0.10477328,95101.0,95090.0,0.11061917]
[1768700068440,0.10477328,95101.0,95089.0,0.00231363]
[1768700069038,0.0202786,95100.0,95089.0,0.00231363]
[1768700069338,0.010519,95094.0,95080.0,0.13896425]
[1768700069650,0.010519,95094.0,95080.0,0.11061917]
[1768700070237,0.010519,95094.0,95079.0,0.09472]
[1768700070440,0.010519,95094.0,95080.0,0.11061917]
[1768700070737,0.09196525,95086.0,95077.0,0.00834508]
[1768700070944,0.0097606,95084.0,95070.0,0.14841261]
[1768700071745,0.10172585,95084.0,95070.0,0.14841261]
[1768700073345,0.10172585,95084.0,95071.0,0.03779344]
[1768700074145,0.09196525,95084.0,95072.0,0.03779344]
[1768700074344,0.09196525,95084.0,95071.0,0.03779344]
[1768700074651,0.09196525,95084.0,95068.0,0.010522]
[1768700074652,0.09196525,95084.0,95070.0,0.11061917]
[1768700075934,0.09196525,95084.0,95069.0,0.03779344]
[1768700076138,0.09196525,95084.0,95070.0,0.14841261]
[1768700077042,0.09196525,95084.0,95064.0,0.09472]
[1768700077043,0.11578813,95083.0,95069.0,0.03779344]
[1768700077242,0.10526813,95081.0,95069.0,0.03779344]
[1768700077448,0.10526813,95081.0,95070.0,0.03779344]
[1768700077640,0.09608709,95081.0,95070.0,0.03779344]
[1768700078348,0.09472,95091.0,95075.0,0.00936939]
[1768700078944,0.11578713,95094.0,95075.0,0.00936939]
[1768700079146,0.09472,95090.0,95075.0,0.00936939]
[1768700079353,0.09608709,95089.0,95074.0,0.04831444]
[1768700079537,0.09472,95090.0,95075.0,0.03779344]
[1768700079538,0.10526813,95086.0,95075.0,0.03779344]
[1768700079738,0.09472,95090.0,95075.0,0.010521]
[1768700079948,0.19080709,95092.0,95075.0,0.01989039]
[1768700084662,0.19080709,95092.0,95075.0,0.010521]
[1768700085656,0.09472,95092.0,95077.0,0.010521]
[1768700086761,0.09608709,95096.0,95081.0,0.01052]
[1768700086955,0.19080709,95096.0,95081.0,0.01052]
[1768700087853,0.09472,95096.0,95083.0,0.01988939]
[1768700088053,0.09472,95096.0,95084.0,0.00936939]
[1768700089061,0.09472,95096.0,95081.0,0.11839373]
[1768700090762,0.010518,95100.0,95081.0,0.11839373]
[1768700090959,0.09472,95101.0,95083.0,0.01052]
[1768700093066,0.10553056,95101.0,95083.0,0.01052]
[1768700093267,0.20025056,95101.0,95083.0,0.01052]
[1768700096667,0.09610662,95100.0,95083.0,0.01052]
[1768700097763,0.10553056,95100.0,95083.0,0.01052]
[1768700100174,0.10553056,95100.0,95085.0,0.01052]
[1768700100469,0.10553056,95100.0,95081.0,0.00936939]
[1768700100769,0.11604856,95100.0,95085.0,0.01052]
[1768700100969,0.11604856,95100.0,95081.0,0.00936939]
[1768700101169,0.10553056,95099.0,95078.0,0.0096657]
[1768700101673,0.10553056,95099.0,95084.0,0.01052]
[1768700102464,0.10553056,95098.0,95084.0,0.01052]
[1768700103974,0.09610662,95098.0,95081.0,0.03779344]
[1768700104675,0.09610662,95098.0,95085.0,0.01052]
[1768700109364,0.10553056,95098.0,95085.0,0.01052]
[1768700109564,0.10553056,95098.0,95081.0,0.03779344]
[1768700109761,0.10553056,95098.0,95078.0,0.0096657]
[1768700109762,0.10553056,95098.0,95079.0,0.03779344]
[1768700110476,0.11604956,95098.0,95083.0,0.01052]
[1768700112870,0.10553056,95098.0,95083.0,0.01052]
[1768700114774,0.10553056,95097.0,95083.0,0.01052]
[1768700115970,0.00942394,95095.0,95080.0,0.010521]
[1768700116170,0.11604956,95092.0,95078.0,0.09472]
[1768700118078,0.10553056,95092.0,95078.0,0.09472]
[1768700120783,0.11604956,95092.0,95078.0,0.09472]
[1768700120985,0.10553056,95090.0,95076.0,0.13251344]
[1768700121584,0.00942394,95089.0,95076.0,0.13251344]
[1768700121775,0.10553056,95089.0,95076.0,0.13251344]
[1768700122577,0.09610662,95089.0,95076.0,0.13251344]
[1768700123386,0.09610662,95089.0,95079.0,0.03779344]
[1768700124785,0.10519484,95089.0,95076.0,0.15141016]
[1768700124984,0.1037665,95086.0,95076.0,0.15141016]
[1768700125181,0.1037665,95086.0,95073.0,0.010521]
[1768700126489,0.00235537,95092.0,95073.0,0.010521]
[1768700126685,0.10519828,95090.0,95073.0,0.010521]
[1768700126988,0.10755365,95090.0,95073.0,0.010521]
[1768700127391,0.09467828,95088.0,95073.0,0.010521]
[1768700129291,0.097046,95083.0,95072.0,0.09472]
[1768700129491,0.09467828,95083.0,95072.0,0.09472]
[1768700129991,0.09467828,95083.0,95072.0,0.105241]
[1768700131885,0.00236772,95088.0,95072.0,0.105241]
[1768700132090,0.097046,95088.0,95072.0,0.105241]
[1768700132487,0.097046,95088.0,95074.0,0.010521]
[1768700134494,0.1006312,95087.0,95072.0,0.09472]
[1768700134792,0.10307551,95087.0,95072.0,0.09472]
[1768700135494,0.01052,95085.0,95072.0,0.09472]
[1768700135694,0.0901112,95083.0,95072.0,0.09472]
[1768700135892,0.09258087,95078.0,95059.0,0.00997119]
[1768700136089,0.09258087,95078.0,95064.0,0.09472]
[1768700137090,0.00248616,95076.0,95062.0,0.010523]
[1768700137295,0.09028324,95074.0,95061.0,0.010523]
[1768700137487,0.09028324,95074.0,95063.0,0.010522]
[1768700137689,0.09028324,95074.0,95060.0,0.09472]
[1768700138391,0.09028324,95074.0,95063.0,0.010522]
[1768700138593,0.09028324,95074.0,95060.0,0.09472]
[1768700139089,0.09028324,95074.0,95061.0,0.010523]
[1768700140796,0.09028324,95074.0,95063.0,0.010522]
[1768700141097,0.0901112,95074.0,95065.0,0.010522]
[1768700142400,0.0901112,95074.0,95067.0,0.010522]
[1768700142986,6.727e-05,95085.0,95073.0,0.010521]
[1768700143999,6.727e-05,95085.0,95070.0,0.010522]
[1768700144197,0.09472,95086.0,95070.0,0.010522]
[1768700147503,0.01052,95085.0,95068.0,0.010522]
[1768700150103,0.1848312,95086.0,95068.0,0.010522]
[1768700150505,0.1953512,95086.0,95068.0,0.010522]
[1768700150803,0.0901112,95085.0,95065.0,0.09115235]
[1768700151005,0.0901112,95085.0,95060.0,0.09472]
[1768700151006,0.0901112,95085.0,95061.0,0.00997119]
[1768700151307,0.0901112,95085.0,95067.0,0.010522]
[1768700153008,0.0901112,95085.0,95069.0,0.010522]
[1768700153404,0.0901112,95085.0,95070.0,0.11058161]
[1768700155007,0.0901112,95085.0,95070.0,0.148464]
[1768700155504,0.01052,95084.0,95070.0,0.148464]
[1768700157906,0.0901112,95085.0,95070.0,0.148464]
[1768700160708,0.01052,95084.0,95070.0,0.148464]
[1768700162309,0.01052,95084.0,95071.0,0.03788239]
[1768700163010,0.01052,95084.0,95074.0,0.03788239]
[1768700163401,0.0901112,95085.0,95072.0,0.03788239]
[1768700164105,0.01052,95084.0,95072.0,0.03788239]
[1768700165312,0.01052,95084.0,95073.0,0.03788239]
[1768700166209,0.01052,95084.0,95072.0,0.03788239]
[1768700166409,0.01052,95084.0,95073.0,0.03788239]
[1768700168313,0.01052,95084.0,95074.0,0.03788239]
[1768700169911,0.01052,95084.0,95073.0,0.03788239]
[1768700170611,0.010521,95081.0,95073.0,0.03788239]
[1768700170805,0.010521,95081.0,95068.0,0.05682023]
[1768700171608,0.09472,95086.0,95068.0,0.05682023]
[1768700171609,0.01052,95084.0,95068.0,0.05682023]
[1768700173217,0.01052,95084.0,95071.0,0.05682023]
[1768700173714,0.01052,95084.0,95070.0,0.05682023]
[1768700174815,0.01052,95084.0,95067.0,0.06680577]
[1768700175116,0.01052,95084.0,95068.0,0.00998554]
[1768700183532,0.01052,95082.0,95068.0,0.00998554]
[1768700184832,0.01052,95082.0,95070.0,0.05682023]
[1768700187335,0.01052,95085.0,95070.0,0.05682023]
[1768700188433,0.09472,95086.0,95070.0,0.06678148]
[1768700188638,0.10524,95086.0,95071.0,0.00996125]
[1768700188838,0.10524,95086.0,95071.0,0.06678148]
[1768700190134,0.09472,95086.0,95071.0,0.06678148]
[1768700190639,0.01052,95085.0,95071.0,0.06678148]
[1768700193335,0.01052,95085.0,95071.0,0.00996125]
[1768700195636,0.09472,95086.0,95071.0,0.00996125]
[1768700198348,0.02141175,95085.0,95071.0,0.00996125]
[1768700198544,0.02141175,95084.0,95071.0,0.00996125]
[1768700198739,0.02141175,95083.0,95071.0,0.00996125]
[1768700199045,0.09472,95086.0,95071.0,0.00996125]
[1768700199243,0.01052,95085.0,95071.0,0.00996125]
[1768700200347,0.09472,95086.0,95071.0,0.00996125]
[1768700201447,0.10524,95086.0,95071.0,0.00996125]
[1768700203347,0.10524,95086.0,95071.0,0.04786757]
[1768700206249,0.09472,95086.0,95071.0,0.04786757]
[1768700208251,0.09472,95086.0,95074.0,0.03790632]
[1768700209250,0.09472,95086.0,95073.0,0.03790632]
[1768700209752,0.09472,95086.0,95074.0,0.03790632]
[1768700210552,0.09472,95086.0,95073.0,0.03790632]
[1768700212253,0.01052,95085.0,95073.0,0.03790632]
[1768700213349,0.01052,95085.0,95072.0,0.03790632]
[1768700217160,0.01052,95083.0,95072.0,0.03790632]
[1768700219055,0.01052,95083.0,95068.0,0.00917812]
[1768700220055,0.01052,95083.0,95070.0,0.03790595]
[1768700221360,0.01052,95083.0,95069.0,0.03790595]
[1768700223262,0.01052,95083.0,95070.0,0.03790595]
[1768700223560,0.01052,95083.0,95072.0,0.03790595]
[1768700224767,0.09472,95086.0,95072.0,0.03790595]
[1768700224965,0.10524,95086.0,95072.0,0.03790595]
[1768700228265,0.10524,95086.0,95073.0,0.03790595]
[1768700228971,0.10524,95086.0,95075.0,0.03790595]
[1768700230069,0.10524,95086.0,95074.0,0.03790595]
[1768700232168,0.10524,95086.0,95070.0,0.06602157]
[1768700233361,0.10524,95086.0,95070.0,0.00920134]
[1768700233762,0.10524,95086.0,95070.0,0.00220828]
[1768700234661,0.10085237,95086.0,95066.0,0.09089691]
[1768700235469,0.01052,95082.0,95066.0,0.10141891]
[1768700235773,0.01052,95082.0,95066.0,0.11062025]
[1768700236173,0.01052,95082.0,95066.0,0.10009825]
[1768700239376,0.01052,95082.0,95067.0,0.00920134]
[1768700240075,0.01052,95085.0,95067.0,0.00920134]
[1768700243678,0.01052,95085.0,95068.0,0.05682023]
[1768700244475,0.01052,95085.0,95069.0,0.05682023]
[1768700244968,0.09472,95087.0,95062.0,0.09472]
[1768700244969,0.09472,95087.0,95071.0,0.00972032]
[1768700245174,0.09472,95087.0,95072.0,0.05682023]
[1768700245677,0.00231363,95089.0,95072.0,0.05682023]
[1768700245879,0.09472,95088.0,95072.0,0.05682023]
[1768700246270,0.00231363,95089.0,95072.0,0.05682023]
[1768700246470,0.09472,95088.0,95072.0,0.05682023]
[1768700247577,0.09472,95088.0,95072.0,0.06182023]
[1768700248679,0.00231363,95089.0,95072.0,0.06182023]
[1768700249076,0.09472,95088.0,95072.0,0.06182023]
[1768700253492,0.09472,95088.0,95072.0,0.005]
[1768700258889,0.09472,95088.0,95073.0,0.010521]
[1768700262189,0.09472,95088.0,95073.0,0.04841544]
[1768700263496,0.09472,95088.0,95074.0,0.03789444]
[1768700264381,0.09472,95088.0,95075.0,0.010521]
[1768700265092,0.09472,95088.0,95076.0,0.03789444]
[1768700265290,0.09472,95088.0,95075.0,0.04841544]
[1768700270394,0.09472,95088.0,95075.0,0.03789444]
[1768700271593,0.09472,95088.0,95075.0,0.04841544]
[1768700273490,0.10524,95088.0,95075.0,0.03789444]
[1768700273795,0.10524,95088.0,95074.0,0.03789444]
[1768700273796,0.01052,95085.0,95074.0,0.03789444]
[1768700275494,0.0165263,95088.0,95074.0,0.03789444]
[1768700275694,0.1112463,95088.0,95074.0,0.03789444]
[1768700276085,0.01052,95086.0,95074.0,0.03789444]
[1768700277689,0.01052,95084.0,95074.0,0.03789444]
[1768700281198,0.01052,95084.0,95073.0,0.03789444]
[1768700282798,0.01052,95084.0,95074.0,0.03789444]
[1768700283101,0.01052,95087.0,95074.0,0.03789444]
[1768700283396,0.09472,95088.0,95074.0,0.03789444]
[1768700283588,0.09472,95088.0,95072.0,0.01431253]
[1768700286098,0.09472,95088.0,95073.0,0.010521]
[1768700286492,0.10524,95088.0,95072.0,0.005]
[1768700287900,0.01052,95088.0,95072.0,0.005]
[1768700288191,0.10524,95088.0,95072.0,0.005]
[1768700288396,0.02160902,95087.0,95072.0,0.005]
[1768700288693,0.02160902,95086.0,95072.0,0.005]
[1768700288895,0.02160902,95085.0,95072.0,0.005]
[1768700289191,0.02160902,95084.0,95072.0,0.005]
[1768700289400,0.10524,95088.0,95072.0,0.005]
[1768700290793,0.09472,95088.0,95072.0,0.015521]
[1768700293502,0.09472,95088.0,95074.0,0.03789752]
[1768700295695,0.01052,95087.0,95073.0,0.03789752]
[1768700298396,0.01052,95087.0,95075.0,0.03789752]
[1768700299398,0.01052,95087.0,95074.0,0.03789752]
[1768700305905,0.01052,95087.0,95075.0,0.03789752]
[1768700307103,0.09472,95088.0,95075.0,0.03789752]
[1768700309410,0.09472,95088.0,95072.0,0.0142809]
[1768700310106,0.09472,95088.0,95073.0,0.010521]
[1768700310508,0.09472,95088.0,95074.0,0.0379016]
[1768700313313,0.09472,95088.0,95075.0,0.0379016]
[1768700313612,0.00231363,95089.0,95075.0,0.0379016]
[1768700313806,0.09472,95088.0,95075.0,0.0379016]
[1768700314411,0.09472,95088.0,95074.0,0.0379016]
[1768700317314,0.10524,95088.0,95074.0,0.0379016]
[1768700318317,0.10524,95088.0,95075.0,0.0379016]
[1768700319410,0.09472,95088.0,95077.0,0.0379016]
[1768700320714,0.09472,95088.0,95076.0,0.0379016]
[1768700323426,0.09472,95088.0,95072.0,0.0142809]
[1768700325124,0.10524,95088.0,95072.0,0.0142809]
[1768700327526,0.10524,95088.0,95072.0,0.005]
[1768700328334,0.01052,95086.0,95072.0,0.005]
[1768700331633,0.01052,95084.0,95072.0,0.005]
[1768700333633,0.01052,95084.0,95075.0,0.0379016]
[1768700333842,0.01052,95084.0,95072.0,0.005]
[1768700334928,0.01652806,95087.0,95072.0,0.005]
[1768700335128,0.01052,95085.0,95072.0,0.005]
[1768700338737,0.00600806,95087.0,95072.0,0.005]
[1768700339139,0.01052,95086.0,95072.0,0.005]
[1768700340733,0.00600806,95087.0,95072.0,0.005]
[1768700340940,0.01652806,95087.0,95072.0,0.005]
[1768700343642,0.01052,95085.0,95072.0,0.005]
[1768700345043,0.00600806,95087.0,95072.0,0.005]
[1768700346443,0.01052,95086.0,95072.0,0.005]
[1768700351142,0.01052,95084.0,95072.0,0.005]
[1768700353342,0.01652806,95087.0,95072.0,0.005]
[1768700355040,0.01052,95085.0,95072.0,0.005]
[1768700356243,0.00600806,95087.0,95072.0,0.005]
[1768700356546,0.01052,95086.0,95072.0,0.005]
[1768700357450,0.00600806,95087.0,95072.0,0.005]
[1768700358449,0.00600806,95087.0,95072.0,0.06182023]
[1768700358647,0.01652806,95087.0,95072.0,0.06182023]
[1768700359245,0.01652806,95087.0,95072.0,0.005]
[1768700362857,0.01052,95085.0,95072.0,0.005]
[1768700363754,0.01052,95085.0,95075.0,0.03790388]
[1768700365554,0.00600806,95087.0,95075.0,0.03790388]
[1768700366158,0.10528,95088.0,95075.0,0.03790388]
[1768700368660,0.10528,95088.0,95072.0,0.015521]
[1768700369564,0.10528,95088.0,95072.0,0.005]
[1768700369765,0.10528,95088.0,95073.0,0.0379034]
[1768700371856,0.11145538,95088.0,95073.0,0.0379034]
[1768700372056,0.01052,95086.0,95073.0,0.0379034]
[1768700373458,0.01052,95086.0,95072.0,0.005]
[1768700375965,0.0061488,95087.0,95072.0,0.005]
[1768700376771,0.01052,95084.0,95072.0,0.005]
[1768700379865,0.0166688,95087.0,95072.0,0.005]
[1768700383473,0.0166688,95087.0,95075.0,0.0379034]
[1768700388777,0.01052,95087.0,95075.0,0.01776894]
[1768700389680,0.01052,95087.0,95072.0,0.005]
[1768700391980,0.01052,95087.0,95072.0,0.015521]
[1768700393491,0.01052,95087.0,95072.0,0.005]
[1768700408903,0.01052,95085.0,95072.0,0.005]
[1768700412703,0.01052,95082.0,95072.0,0.005]
[1768700414290,0.01052,95085.0,95072.0,0.005]
[1768700417603,0.01052,95082.0,95072.0,0.005]
[1768700418706,0.01052,95086.0,95072.0,0.005]
[1768700423514,0.01052,95086.0,95075.0,0.0379041]
[1768700425718,0.10106513,95088.0,95075.0,0.0379041]
[1768700427609,0.01052,95087.0,95075.0,0.0379041]
[1768700430321,0.01052,95085.0,95075.0,0.0379041]
[1768700431021,0.01052,95085.0,95072.0,0.005]
[1768700431920,0.01052,95085.0,95073.0,0.03790459]
[1768700432419,0.01052,95082.0,95073.0,0.03790459]
[1768700433921,0.01052,95087.0,95073.0,0.03790459]
[1768700434220,0.01052,95084.0,95073.0,0.03790459]
[1768700435322,0.01052,95088.0,95073.0,0.03790459]
[1768700440018,0.01052,95085.0,95073.0,0.03790459]
[1768700440924,0.01052,95085.0,95075.0,0.03790459]
[1768700442025,0.01052,95085.0,95072.0,0.005]
[1768700443020,0.01052,95085.0,95073.0,0.03790444]
[1768700443323,0.10524,95088.0,95073.0,0.03790444]
[1768700445921,0.01052,95086.0,95073.0,0.03790444]
[1768700446926,0.09472,95088.0,95073.0,0.03790444]
[1768700449027,0.1105793,95083.0,95073.0,0.03790444]
[1768700449227,0.00678261,95087.0,95072.0,0.04290444]
[1768700449428,0.09472,95088.0,95072.0,0.04290444]
[1768700450729,0.09703363,95089.0,95072.0,0.04290444]
[1768700451432,0.01052,95083.0,95072.0,0.04290444]
[1768700451928,0.01052,95083.0,95073.0,0.03790444]
[1768700452629,0.010521,95081.0,95073.0,0.03790444]
[1768700453020,0.010521,95081.0,95072.0,0.005]
[1768700454430,0.010521,95081.0,95072.0,0.04290199]
[1768700454830,0.010521,95081.0,95072.0,0.005]
[1768700456645,0.09472,95088.0,95072.0,0.005]
[1768700456934,0.010521,95080.0,95072.0,0.04290199]
[1768700457123,0.09472,95088.0,95072.0,0.04290199]